[Event "*** Biggest EVER Titled Tuesday"]
[Site "Chess.com"]
[Date "2018.04.17"]
[Round "1"]
[White "leclash"]
[Black "GMAkobianSTL"]
[Result "0-1"]
[WhiteElo "2347"]
[BlackElo "2662"]
[TimeControl "180+2"]
[EndTime "13:08:37 PDT"]
[Termination "GMAkobianSTL won by resignation"]

1. d4 {[%clk 0:03:00.2]} 1... e6 {[%clk 0:03:00]} 2. c4 {[%clk 0:03:00.9]} 2...
b6 {[%clk 0:03:00.8]} 3. e4 {[%clk 0:03:01.2]} 3... Bb7 {[%clk 0:03:01.8]} 4.
Bd3 {[%clk 0:03:02.8]} 4... Nc6 {[%clk 0:03:01.9]} 5. Ne2 {[%clk 0:03:01.2]}
5... Nb4 {[%clk 0:03:02.3]} 6. Nbc3 {[%clk 0:03:02.3]} 6... Nxd3+ {[%clk
0:03:02.8]} 7. Qxd3 {[%clk 0:03:04.2]} 7... d6 {[%clk 0:03:02.6]} 8. O-O {[%clk
0:03:04.7]} 8... Nf6 {[%clk 0:03:03.2]} 9. f3 {[%clk 0:02:56.5]} 9... Be7 {[%clk
0:03:03.5]} 10. Bg5 {[%clk 0:02:51.5]} 10... O-O {[%clk 0:03:03.6]} 11. Rad1
{[%clk 0:02:47.2]} 11... h6 {[%clk 0:03:00.3]} 12. Bh4 {[%clk 0:02:46.5]} 12...
Qd7 {[%clk 0:03:00.6]} 13. e5 {[%clk 0:02:38.4]} 13... Nh7 {[%clk 0:02:55.2]}
14. Bxe7 {[%clk 0:02:36.2]} 14... Qxe7 {[%clk 0:02:55.9]} 15. f4 {[%clk
0:02:33.2]} 15... Rad8 {[%clk 0:02:55.7]} 16. Qe3 {[%clk 0:02:21.4]} 16... Rd7
{[%clk 0:02:51.7]} 17. Rd2 {[%clk 0:02:19.7]} 17... Rfd8 {[%clk 0:02:52.2]} 18.
Rfd1 {[%clk 0:02:20.6]} 18... Nf8 {[%clk 0:02:53.2]} 19. b3 {[%clk 0:02:17.9]}
19... Ng6 {[%clk 0:02:53.5]} 20. g3 {[%clk 0:02:14.4]} 20... Qe8 {[%clk
0:02:50.2]} 21. d5 {[%clk 0:01:58.4]} 21... dxe5 {[%clk 0:02:50.3]} 22. dxe6
{[%clk 0:01:58.4]} 22... Qxe6 {[%clk 0:02:50.3]} 23. Rxd7 {[%clk 0:01:58.4]}
23... Rxd7 {[%clk 0:02:51.2]} 24. Rxd7 {[%clk 0:01:59.5]} 24... Qxd7 {[%clk
0:02:52]} 25. fxe5 {[%clk 0:01:55.4]} 25... Qf5 {[%clk 0:02:42.6]} 26. Nd4
{[%clk 0:01:33.7]} 26... Qh3 {[%clk 0:02:32.4]} 27. Nd5 {[%clk 0:01:33.8]} 27...
c6 {[%clk 0:02:33]} 28. Nf4 {[%clk 0:01:32.1]} 28... Nxf4 {[%clk 0:02:33.5]} 29.
Qxf4 {[%clk 0:01:34]} 29... c5 {[%clk 0:02:34.4]} 30. Nf3 {[%clk 0:01:34.1]}
30... Qh5 {[%clk 0:02:31.6]} 31. Kf2 {[%clk 0:01:12.8]} 31... Bxf3 {[%clk
0:02:09.2]} 32. Qxf3 {[%clk 0:01:14.7]} 32... Qxh2+ {[%clk 0:02:10.2]} 33. Kf1
{[%clk 0:01:13.5]} 33... g6 {[%clk 0:02:03.4]} 34. Qa8+ {[%clk 0:01:03.5]} 34...
Kg7 {[%clk 0:02:03.4]} 35. Qxa7 {[%clk 0:01:04.8]} 35... Qxg3 {[%clk 0:01:58.1]}
36. Qxb6 {[%clk 0:01:05.8]} 36... Qxe5 {[%clk 0:01:58.5]} 37. a4 {[%clk
0:01:06.1]} 37... h5 {[%clk 0:01:53.9]} 38. a5 {[%clk 0:01:05.1]} 38... h4
{[%clk 0:01:54.9]} 39. a6 {[%clk 0:01:01.4]} 39... Qf4+ {[%clk 0:01:53]} 40. Ke2
{[%clk 0:00:57.7]} 40... Qe4+ {[%clk 0:01:51.9]} 41. Kd2 {[%clk 0:00:55.2]}
41... h3 {[%clk 0:01:53.1]} 42. Qb7 {[%clk 0:00:50.8]} 42... Qg2+ {[%clk
0:01:32.5]} 43. Kc3 {[%clk 0:00:51]} 43... Qg3+ {[%clk 0:01:14.9]} 44. Kb2
{[%clk 0:00:51.8]} 44... Qe5+ {[%clk 0:00:50.7]} 45. Ka2 {[%clk 0:00:51.1]}
45... Qe2+ {[%clk 0:00:46.3]} 46. Ka3 {[%clk 0:00:19.8]} 46... Qe1 {[%clk
0:00:45.5]} 47. Kb2 {[%clk 0:00:19.4]} 47... h2 {[%clk 0:00:46.2]} 0-1

[Event "*** Biggest EVER Titled Tuesday"]
[Site "Chess.com"]
[Date "2018.04.17"]
[Round "1"]
[White "calemcc"]
[Black "IMAghasiyevKamal"]
[Result "1-0"]
[WhiteElo "2250"]
[BlackElo "2551"]
[TimeControl "180+2"]
[EndTime "13:08:41 PDT"]
[Termination "calemcc won by resignation"]

1. d4 {[%clk 0:03:01.9]} 1... Nf6 {[%clk 0:02:59.5]} 2. c4 {[%clk 0:03:03]} 2...
g6 {[%clk 0:03:00]} 3. f3 {[%clk 0:03:04]} 3... Bg7 {[%clk 0:02:58.7]} 4. e4
{[%clk 0:03:05]} 4... d6 {[%clk 0:02:58.9]} 5. Nc3 {[%clk 0:03:06.4]} 5... O-O
{[%clk 0:02:59.6]} 6. Be3 {[%clk 0:03:07.9]} 6... e5 {[%clk 0:02:59.8]} 7. Nge2
{[%clk 0:03:08.1]} 7... exd4 {[%clk 0:02:59.4]} 8. Nxd4 {[%clk 0:03:08.9]} 8...
Nc6 {[%clk 0:03:00.7]} 9. Qd2 {[%clk 0:03:10.2]} 9... Nxd4 {[%clk 0:02:58.1]}
10. Bxd4 {[%clk 0:03:10.5]} 10... c6 {[%clk 0:02:59.1]} 11. O-O-O {[%clk
0:03:04.7]} 11... Be6 {[%clk 0:02:48.5]} 12. h4 {[%clk 0:02:55.7]} 12... d5
{[%clk 0:02:37.4]} 13. exd5 {[%clk 0:02:41.4]} 13... cxd5 {[%clk 0:02:38.1]} 14.
h5 {[%clk 0:02:41.7]} 14... dxc4 {[%clk 0:02:32.7]} 15. hxg6 {[%clk 0:01:56.9]}
15... hxg6 {[%clk 0:02:28.9]} 16. Qg5 {[%clk 0:01:57.9]} 16... Re8 {[%clk
0:02:25.8]} 17. Qh4 {[%clk 0:01:48]} 17... Nh5 {[%clk 0:02:20.9]} 18. Bxg7
{[%clk 0:01:45.3]} 18... Qxh4 {[%clk 0:02:20.7]} 19. Rxh4 {[%clk 0:01:46.2]}
19... Kxg7 {[%clk 0:02:21.9]} 20. Bxc4 {[%clk 0:01:47.2]} 20... Nf6 {[%clk
0:02:10.3]} 21. Bxe6 {[%clk 0:01:45.1]} 21... Rxe6 {[%clk 0:02:09.6]} 22. Rhd4
{[%clk 0:01:40.6]} 22... Rh8 {[%clk 0:02:09.1]} 23. Rd8 {[%clk 0:01:35.1]} 23...
Ree8 {[%clk 0:01:55]} 24. Rxe8 {[%clk 0:01:34.3]} 24... Rxe8 {[%clk 0:01:56.1]}
25. Rd4 {[%clk 0:01:20.1]} 25... Re1+ {[%clk 0:01:54.6]} 26. Rd1 {[%clk
0:01:14.1]} 26... Re5 {[%clk 0:01:54.7]} 27. Rd4 {[%clk 0:01:13.4]} 27... Rg5
{[%clk 0:01:53.3]} 28. Rb4 {[%clk 0:01:01.1]} 28... b6 {[%clk 0:01:49.6]} 29. g4
{[%clk 0:00:58.9]} 29... Re5 {[%clk 0:01:48.1]} 30. Ra4 {[%clk 0:00:54.9]} 30...
a5 {[%clk 0:01:43.5]} 31. Kd2 {[%clk 0:00:54.5]} 31... Nd7 {[%clk 0:01:37.8]}
32. Rd4 {[%clk 0:00:52.3]} 32... Nc5 {[%clk 0:01:33.5]} 33. Rd6 {[%clk
0:00:51.4]} 33... Re6 {[%clk 0:01:30.6]} 34. Rxe6 {[%clk 0:00:49.2]} 34... fxe6
{[%clk 0:01:28.5]} 35. Ke3 {[%clk 0:00:45]} 35... Kf6 {[%clk 0:01:24.9]} 36.
Ne4+ {[%clk 0:00:45.3]} 36... Ke5 {[%clk 0:01:22.5]} 37. Nxc5 {[%clk 0:00:38.8]}
37... bxc5 {[%clk 0:01:23.4]} 38. b3 {[%clk 0:00:38.4]} 38... g5 {[%clk
0:01:23.6]} 39. a4 {[%clk 0:00:32.2]} 39... Kd5 {[%clk 0:01:20.4]} 40. Kd3
{[%clk 0:00:33.3]} 40... c4+ {[%clk 0:01:01.8]} 41. bxc4+ {[%clk 0:00:32.1]}
41... Kc5 {[%clk 0:01:03]} 42. f4 {[%clk 0:00:20.9]} 42... gxf4 {[%clk
0:00:58.4]} 43. g5 {[%clk 0:00:22.2]} 43... Kd6 {[%clk 0:00:59.6]} 44. Ke4
{[%clk 0:00:22.2]} 44... e5 {[%clk 0:00:57.2]} 45. g6 {[%clk 0:00:21.2]} 45...
Ke6 {[%clk 0:00:58]} 46. c5 {[%clk 0:00:22.7]} 46... Kf6 {[%clk 0:00:59.9]} 47.
c6 {[%clk 0:00:24]} 47... Kxg6 {[%clk 0:01:01.8]} 48. c7 {[%clk 0:00:25.5]}
48... Kg5 {[%clk 0:01:02.9]} 49. c8=Q {[%clk 0:00:26.8]} 49... Kh4 {[%clk
0:01:04]} 50. Qf5 {[%clk 0:00:27.7]} 50... Kg3 {[%clk 0:01:04.6]} 51. Qg5+
{[%clk 0:00:28.5]} 51... Kf2 {[%clk 0:01:05.6]} 52. Qxe5 {[%clk 0:00:29.2]}
52... f3 {[%clk 0:01:06.8]} 53. Qf4 {[%clk 0:00:31.1]} 53... Ke1 {[%clk
0:01:07]} 54. Qxf3 {[%clk 0:00:32.5]} 54... Kd2 {[%clk 0:01:07.9]} 55. Kd4
{[%clk 0:00:33.9]} 1-0

[Event "*** Biggest EVER Titled Tuesday"]
[Site "Chess.com"]
[Date "2018.04.17"]
[Round "1"]
[White "maciek_92"]
[Black "Orest_Vovk"]
[Result "1-0"]
[WhiteElo "2575"]
[BlackElo "2236"]
[TimeControl "180+2"]
[EndTime "13:08:42 PDT"]
[Termination "maciek_92 won by checkmate"]

1. c4 {[%clk 0:03:00.1]} 1... g5 {[%clk 0:03:00.1]} 2. Nc3 {[%clk 0:03:00.6]}
2... Bg7 {[%clk 0:03:01.2]} 3. d3 {[%clk 0:02:50.7]} 3... g4 {[%clk 0:03:01.1]}
4. e4 {[%clk 0:02:50.5]} 4... d6 {[%clk 0:02:59.8]} 5. h3 {[%clk 0:02:51.5]}
5... h5 {[%clk 0:03:00.2]} 6. Be3 {[%clk 0:02:51.9]} 6... c5 {[%clk 0:02:59.4]}
7. Nge2 {[%clk 0:02:48.7]} 7... Nc6 {[%clk 0:02:57.9]} 8. d4 {[%clk 0:02:49.7]}
8... cxd4 {[%clk 0:02:52.5]} 9. Nxd4 {[%clk 0:02:51.6]} 9... Qa5 {[%clk
0:02:53]} 10. Rc1 {[%clk 0:02:49]} 10... Nxd4 {[%clk 0:02:48.1]} 11. Bxd4 {[%clk
0:02:49.5]} 11... Bxd4 {[%clk 0:02:50]} 12. Qxd4 {[%clk 0:02:50.9]} 12... Nf6
{[%clk 0:02:51.6]} 13. hxg4 {[%clk 0:02:50.4]} 13... Bxg4 {[%clk 0:02:52.1]} 14.
f3 {[%clk 0:02:50.3]} 14... Be6 {[%clk 0:02:52.3]} 15. Qd2 {[%clk 0:02:40.4]}
15... Qe5 {[%clk 0:02:45.5]} 16. Nd5 {[%clk 0:02:30]} 16... Bxd5 {[%clk
0:02:41.3]} 17. cxd5 {[%clk 0:02:31.9]} 17... a6 {[%clk 0:02:39]} 18. Rc7 {[%clk
0:02:24]} 18... b5 {[%clk 0:02:36.2]} 19. Rh3 {[%clk 0:02:23]} 19... Kf8 {[%clk
0:02:29.4]} 20. Qc3 {[%clk 0:02:19.3]} 20... Qg5 {[%clk 0:02:15.2]} 21. Kf2
{[%clk 0:02:14.1]} 21... h4 {[%clk 0:02:03.4]} 22. b4 {[%clk 0:01:26.6]} 22...
Qf4 {[%clk 0:02:01.8]} 23. Kg1 {[%clk 0:01:20.7]} 23... Re8 {[%clk 0:01:48.7]}
24. g3 {[%clk 0:01:16.2]} 24... Qg5 {[%clk 0:01:43.5]} 25. Bg2 {[%clk
0:01:16.8]} 25... Kg7 {[%clk 0:01:39.7]} 26. g4 {[%clk 0:01:07.9]} 26... Qe5
{[%clk 0:01:27.6]} 27. Qxe5 {[%clk 0:01:01.5]} 27... dxe5 {[%clk 0:01:29.4]} 28.
Bf1 {[%clk 0:00:53.2]} 28... Rc8 {[%clk 0:01:04.3]} 29. Rxe7 {[%clk 0:00:48.3]}
29... Rc1 {[%clk 0:01:04.6]} 30. Rxe5 {[%clk 0:00:46.9]} 30... Rd1 {[%clk
0:01:01]} 31. Rg5+ {[%clk 0:00:45.1]} 31... Kf8 {[%clk 0:00:55.6]} 32. Rh2
{[%clk 0:00:44.3]} 32... h3 {[%clk 0:00:49.2]} 33. Kf2 {[%clk 0:00:40]} 33...
Ke7 {[%clk 0:00:40.9]} 34. Bxh3 {[%clk 0:00:35.2]} 34... Rc8 {[%clk 0:00:41.1]}
35. Kg3 {[%clk 0:00:35.5]} 35... Rg1+ {[%clk 0:00:39.9]} 36. Kf4 {[%clk
0:00:34.5]} 36... Rc3 {[%clk 0:00:37.5]} 37. d6+ {[%clk 0:00:34.1]} 37... Kd8
{[%clk 0:00:26.3]} 38. Rf5 {[%clk 0:00:31.5]} 38... Ne8 {[%clk 0:00:26.3]} 39.
e5 {[%clk 0:00:31.3]} 39... f6 {[%clk 0:00:25.8]} 40. exf6 {[%clk 0:00:31.9]}
40... Nxd6 {[%clk 0:00:20.8]} 41. f7 {[%clk 0:00:33]} 41... Rc4+ {[%clk
0:00:20.7]} 42. Kg5 {[%clk 0:00:33.7]} 42... Nxf7+ {[%clk 0:00:21.6]} 43. Rxf7
{[%clk 0:00:34.6]} 43... Rd1 {[%clk 0:00:20.1]} 44. f4 {[%clk 0:00:33.6]} 44...
Ke8 {[%clk 0:00:17.4]} 45. Ra7 {[%clk 0:00:33.7]} 45... Kf8 {[%clk 0:00:15.3]}
46. Bf1 {[%clk 0:00:33.6]} 46... Rxf1 {[%clk 0:00:15.3]} 47. Rh8# {[%clk
0:00:34.2]} 1-0

[Event "*** Biggest EVER Titled Tuesday"]
[Site "Chess.com"]
[Date "2018.04.17"]
[Round "1"]
[White "Tesla37"]
[Black "Caterpiller35"]
[Result "1-0"]
[WhiteElo "2580"]
[BlackElo "2238"]
[TimeControl "180+2"]
[EndTime "13:08:48 PDT"]
[Termination "Tesla37 won by resignation"]

1. e4 {[%clk 0:03:01.9]} 1... c5 {[%clk 0:03:00.3]} 2. Nf3 {[%clk 0:03:02.2]}
2... g6 {[%clk 0:03:00.3]} 3. d4 {[%clk 0:03:02.2]} 3... cxd4 {[%clk 0:03:01.3]}
4. Nxd4 {[%clk 0:03:03.7]} 4... Bg7 {[%clk 0:03:02.5]} 5. Nc3 {[%clk 0:03:05.2]}
5... Nc6 {[%clk 0:03:02.3]} 6. Nde2 {[%clk 0:03:06.1]} 6... Nf6 {[%clk
0:03:02.9]} 7. g3 {[%clk 0:03:07.1]} 7... h5 {[%clk 0:03:03.4]} 8. h3 {[%clk
0:03:06.9]} 8... d6 {[%clk 0:03:03.8]} 9. Bg2 {[%clk 0:03:07.7]} 9... Bd7 {[%clk
0:03:04.9]} 10. b3 {[%clk 0:03:04.6]} 10... Rc8 {[%clk 0:03:05.5]} 11. Bb2
{[%clk 0:03:05.4]} 11... O-O {[%clk 0:03:06.1]} 12. Qd2 {[%clk 0:03:06]} 12...
a6 {[%clk 0:03:05.1]} 13. O-O {[%clk 0:03:05.8]} 13... b5 {[%clk 0:03:05.7]} 14.
Rab1 {[%clk 0:03:05.5]} 14... Qb6 {[%clk 0:03:05.6]} 15. Rfe1 {[%clk 0:02:58.8]}
15... Ne5 {[%clk 0:03:01.1]} 16. Nd5 {[%clk 0:02:41.1]} 16... Nxd5 {[%clk
0:03:01.1]} 17. exd5 {[%clk 0:02:42.2]} 17... Bf5 {[%clk 0:02:35.3]} 18. Nd4
{[%clk 0:02:27.7]} 18... Bxh3 {[%clk 0:02:23.6]} 19. Bxh3 {[%clk 0:02:10.7]}
19... Qxd4 {[%clk 0:02:24.5]} 20. Qxd4 {[%clk 0:01:59.5]} 20... Nf3+ {[%clk
0:02:24.5]} 21. Kf1 {[%clk 0:01:31.3]} 21... Bxd4 {[%clk 0:02:12.5]} 22. Bxd4
{[%clk 0:01:26.2]} 22... Nxd4 {[%clk 0:01:34.2]} 23. Bxc8 {[%clk 0:01:24.3]}
23... Rxc8 {[%clk 0:01:34.7]} 24. Rbc1 {[%clk 0:01:22.3]} 24... Kf8 {[%clk
0:01:31.7]} 25. c3 {[%clk 0:01:22]} 25... Nf3 {[%clk 0:01:25.9]} 26. Red1 {[%clk
0:01:22]} 26... Ne5 {[%clk 0:01:17]} 27. f4 {[%clk 0:01:21.7]} 27... Ng4 {[%clk
0:01:17.1]} 28. Ke2 {[%clk 0:01:23.3]} 28... Rc5 {[%clk 0:01:11.9]} 29. a3
{[%clk 0:01:12.6]} 29... a5 {[%clk 0:01:09.4]} 30. c4 {[%clk 0:01:12.6]} 30...
Ke8 {[%clk 0:00:54]} 31. Rc2 {[%clk 0:01:05.7]} 31... Nf6 {[%clk 0:00:51.3]} 32.
Rdc1 {[%clk 0:01:03.5]} 32... bxc4 {[%clk 0:00:44.9]} 33. bxc4 {[%clk
0:01:03.3]} 33... e6 {[%clk 0:00:42.8]} 34. dxe6 {[%clk 0:01:01.5]} 34... fxe6
{[%clk 0:00:43.9]} 35. Kd3 {[%clk 0:01:02.7]} 35... Ke7 {[%clk 0:00:43.7]} 36.
Rb1 {[%clk 0:01:02.5]} 36... Ng4 {[%clk 0:00:41.6]} 37. Rb5 {[%clk 0:01:00.7]}
37... e5 {[%clk 0:00:32.1]} 38. Rxc5 {[%clk 0:01:00.5]} 38... dxc5 {[%clk
0:00:33.4]} 39. Ke4 {[%clk 0:00:52]} 39... exf4 {[%clk 0:00:32.4]} 40. Kxf4
{[%clk 0:00:53]} 40... Kf6 {[%clk 0:00:32.7]} 41. Rd2 {[%clk 0:00:52.6]} 41...
g5+ {[%clk 0:00:33.4]} 42. Ke4 {[%clk 0:00:52.2]} 42... h4 {[%clk 0:00:30.1]}
43. gxh4 {[%clk 0:00:46.4]} 43... gxh4 {[%clk 0:00:31.3]} 44. Kf4 {[%clk
0:00:47.4]} 44... Nh6 {[%clk 0:00:24.2]} 45. Rd6+ {[%clk 0:00:48]} 45... Kg7
{[%clk 0:00:24.7]} 46. Rd5 {[%clk 0:00:49.1]} 46... Kg6 {[%clk 0:00:20.2]} 47.
Rg5+ {[%clk 0:00:46.8]} 47... Kf6 {[%clk 0:00:21.1]} 48. Rxc5 {[%clk 0:00:45.9]}
48... Nf7 {[%clk 0:00:21.6]} 49. Rh5 {[%clk 0:00:45.1]} 49... Nd6 {[%clk
0:00:21.7]} 50. c5 {[%clk 0:00:43.8]} 50... Nc4 {[%clk 0:00:22.8]} 51. c6 {[%clk
0:00:43.3]} 51... Ke6 {[%clk 0:00:23.9]} 52. c7 {[%clk 0:00:43.4]} 52... Ke7
{[%clk 0:00:25.2]} 1-0

[Event "*** Biggest EVER Titled Tuesday"]
[Site "Chess.com"]
[Date "2018.04.17"]
[Round "1"]
[White "itisabigworld"]
[Black "Guriempire"]
[Result "1-0"]
[WhiteElo "2284"]
[BlackElo "2532"]
[TimeControl "180+2"]
[EndTime "13:08:55 PDT"]
[Termination "itisabigworld won by resignation"]

1. e4 {[%clk 0:02:59.1]} 1... c6 {[%clk 0:03:00.4]} 2. d4 {[%clk 0:02:59.3]}
2... d5 {[%clk 0:03:02.3]} 3. e5 {[%clk 0:03:00.5]} 3... Bf5 {[%clk 0:03:01.6]}
4. h4 {[%clk 0:03:01.4]} 4... h5 {[%clk 0:02:58.9]} 5. Bd3 {[%clk 0:03:01.9]}
5... Bxd3 {[%clk 0:02:58.9]} 6. Qxd3 {[%clk 0:03:03.4]} 6... e6 {[%clk
0:02:59.3]} 7. Bg5 {[%clk 0:03:04.1]} 7... Qa5+ {[%clk 0:02:48.7]} 8. Nd2 {[%clk
0:03:04]} 8... Ne7 {[%clk 0:02:43.6]} 9. Nf3 {[%clk 0:03:01.4]} 9... Nf5 {[%clk
0:02:43.7]} 10. O-O {[%clk 0:03:01.7]} 10... Qa6 {[%clk 0:02:44.7]} 11. c4
{[%clk 0:03:02.8]} 11... Nd7 {[%clk 0:02:40]} 12. b3 {[%clk 0:03:03.8]} 12...
Be7 {[%clk 0:02:32.8]} 13. Rfc1 {[%clk 0:03:03.6]} 13... O-O {[%clk 0:02:27.4]}
14. Bxe7 {[%clk 0:02:42.1]} 14... Nxe7 {[%clk 0:02:29.3]} 15. Ng5 {[%clk
0:02:42.9]} 15... g6 {[%clk 0:02:13.8]} 16. Nf1 {[%clk 0:02:22.2]} 16... Rac8
{[%clk 0:02:02.3]} 17. Ng3 {[%clk 0:02:22.6]} 17... Nf5 {[%clk 0:01:51.9]} 18.
Nxf5 {[%clk 0:02:23.1]} 18... exf5 {[%clk 0:01:53.8]} 19. e6 {[%clk 0:02:21.5]}
19... fxe6 {[%clk 0:01:48.8]} 20. Nxe6 {[%clk 0:02:22.5]} 20... Rfe8 {[%clk
0:01:46]} 21. Nf4 {[%clk 0:02:23.1]} 21... Nf8 {[%clk 0:01:43.9]} 22. Qg3 {[%clk
0:02:23.6]} 22... Kf7 {[%clk 0:01:35.4]} 23. cxd5 {[%clk 0:02:23.8]} 23... cxd5
{[%clk 0:01:37.3]} 24. Nxd5 {[%clk 0:02:23.1]} 24... Ne6 {[%clk 0:01:20.2]} 25.
Rxc8 {[%clk 0:02:08.9]} 25... Rxc8 {[%clk 0:01:22.1]} 26. Qe5 {[%clk 0:02:09.8]}
26... Nf8 {[%clk 0:01:01.9]} 27. Qe7+ {[%clk 0:02:09.7]} 27... Kg8 {[%clk
0:00:58.1]} 28. Nf6+ {[%clk 0:02:04.2]} 28... Kh8 {[%clk 0:00:57.8]} 29. Ne8
{[%clk 0:02:03.9]} 29... Rxe8 {[%clk 0:00:40.5]} 30. Qxe8 {[%clk 0:02:03.5]}
30... Kg8 {[%clk 0:00:36.7]} 31. Re1 {[%clk 0:02:00.4]} 31... Qxa2 {[%clk
0:00:25.8]} 32. Qb5 {[%clk 0:01:51.6]} 32... Qd2 {[%clk 0:00:20.2]} 33. Qd5+
{[%clk 0:01:52.4]} 33... Kh8 {[%clk 0:00:18.3]} 34. Re8 {[%clk 0:01:51.9]} 34...
Qc1+ {[%clk 0:00:17.5]} 35. Kh2 {[%clk 0:01:48.2]} 35... Qf4+ {[%clk 0:00:18.7]}
36. g3 {[%clk 0:01:49.1]} 36... Qxf2+ {[%clk 0:00:19.7]} 37. Qg2 {[%clk
0:01:50.4]} 37... Qxg2+ {[%clk 0:00:19.5]} 38. Kxg2 {[%clk 0:01:51.6]} 38... Kg7
{[%clk 0:00:20.5]} 39. Re7+ {[%clk 0:01:53.1]} 39... Kf6 {[%clk 0:00:21.4]} 40.
Rxb7 {[%clk 0:01:54.6]} 40... Ne6 {[%clk 0:00:23.3]} 41. Rxa7 {[%clk 0:01:49.9]}
41... Nxd4 {[%clk 0:00:24.3]} 42. b4 {[%clk 0:01:51.3]} 42... Ke5 {[%clk
0:00:24.4]} 43. Ra6 {[%clk 0:01:44.1]} 43... Nc2 {[%clk 0:00:21.9]} 44. b5
{[%clk 0:01:42.3]} 44... Ne3+ {[%clk 0:00:20.4]} 45. Kf3 {[%clk 0:01:43.1]}
45... Nc4 {[%clk 0:00:21]} 46. Rxg6 {[%clk 0:01:43.1]} 46... Nd2+ {[%clk
0:00:19.8]} 47. Ke2 {[%clk 0:01:42.3]} 47... Ne4 {[%clk 0:00:21.7]} 48. b6
{[%clk 0:01:42.6]} 48... Nc5 {[%clk 0:00:22.5]} 49. Ke3 {[%clk 0:01:41.9]} 49...
Nb7 {[%clk 0:00:22.8]} 50. Rh6 {[%clk 0:01:42.2]} 50... Nd6 {[%clk 0:00:22.6]}
51. Rxh5 {[%clk 0:01:42]} 51... Nc4+ {[%clk 0:00:23.6]} 52. Kf3 {[%clk
0:01:42.9]} 52... Nxb6 {[%clk 0:00:25.5]} 53. g4 {[%clk 0:01:44]} 53... Nd7
{[%clk 0:00:25.1]} 54. Rxf5+ {[%clk 0:01:45]} 54... Ke6 {[%clk 0:00:26.5]} 55.
h5 {[%clk 0:01:46.3]} 55... Ne5+ {[%clk 0:00:27.4]} 56. Rxe5+ {[%clk 0:01:46.3]}
56... Kxe5 {[%clk 0:00:28.4]} 57. Ke3 {[%clk 0:01:47.7]} 57... Ke6 {[%clk
0:00:28.3]} 58. Kf4 {[%clk 0:01:48.7]} 58... Kf6 {[%clk 0:00:30.2]} 59. g5+
{[%clk 0:01:49.3]} 59... Kg7 {[%clk 0:00:30.9]} 60. Kf5 {[%clk 0:01:50.3]} 60...
Kf7 {[%clk 0:00:32]} 61. h6 {[%clk 0:01:51.2]} 61... Kg8 {[%clk 0:00:33.1]} 62.
Kf6 {[%clk 0:01:52.2]} 62... Kh8 {[%clk 0:00:33.2]} 63. Kf7 {[%clk 0:01:52.7]}
63... Kh7 {[%clk 0:00:33.5]} 64. g6+ {[%clk 0:01:53.7]} 64... Kxh6 {[%clk
0:00:34.7]} 65. g7 {[%clk 0:01:54.7]} 65... Kg5 {[%clk 0:00:36.5]} 66. g8=Q+
{[%clk 0:01:55]} 66... Kf4 {[%clk 0:00:38.4]} 67. Qe8 {[%clk 0:01:55.6]} 1-0

[Event "*** Biggest EVER Titled Tuesday"]
[Site "Chess.com"]
[Date "2018.04.17"]
[Round "1"]
[White "tango_argentino"]
[Black "MikeSailer"]
[Result "0-1"]
[WhiteElo "2435"]
[BlackElo "2006"]
[TimeControl "180+2"]
[EndTime "13:09:00 PDT"]
[Termination "MikeSailer won by resignation"]

1. e4 {[%clk 0:03:00.8]} 1... d5 {[%clk 0:02:59.8]} 2. exd5 {[%clk 0:03:01.4]}
2... Qxd5 {[%clk 0:03:00.2]} 3. Nf3 {[%clk 0:03:02.9]} 3... Nf6 {[%clk
0:02:59.8]} 4. d4 {[%clk 0:03:03.7]} 4... Bg4 {[%clk 0:02:59]} 5. Be2 {[%clk
0:03:04.3]} 5... e6 {[%clk 0:02:59.6]} 6. c4 {[%clk 0:03:04]} 6... Qd8 {[%clk
0:03:00.2]} 7. Nc3 {[%clk 0:03:05.2]} 7... Be7 {[%clk 0:03:01]} 8. Be3 {[%clk
0:03:06.7]} 8... O-O {[%clk 0:03:01.5]} 9. h3 {[%clk 0:03:08.1]} 9... Bh5 {[%clk
0:03:02]} 10. O-O {[%clk 0:03:05.7]} 10... a6 {[%clk 0:02:59.6]} 11. Qb3 {[%clk
0:03:06.5]} 11... Qc8 {[%clk 0:02:57.9]} 12. Rfd1 {[%clk 0:03:07.1]} 12... Nbd7
{[%clk 0:02:58.4]} 13. Rac1 {[%clk 0:03:03]} 13... c5 {[%clk 0:02:54.5]} 14. d5
{[%clk 0:03:02.8]} 14... e5 {[%clk 0:02:53.3]} 15. d6 {[%clk 0:03:03.5]} 15...
Bd8 {[%clk 0:02:53.7]} 16. Nd5 {[%clk 0:03:03.2]} 16... Nxd5 {[%clk 0:02:51.9]}
17. Rxd5 {[%clk 0:03:03.9]} 17... Rb8 {[%clk 0:02:47.4]} 18. Qd1 {[%clk
0:03:03.4]} 18... Re8 {[%clk 0:02:36.7]} 19. b4 {[%clk 0:02:53.6]} 19... Bb6
{[%clk 0:02:26.1]} 20. Ng5 {[%clk 0:02:45]} 20... Bxe2 {[%clk 0:02:23.9]} 21.
Qxe2 {[%clk 0:02:46.9]} 21... f6 {[%clk 0:02:19.8]} 22. Ne4 {[%clk 0:02:43.6]}
22... cxb4 {[%clk 0:02:19.6]} 23. c5 {[%clk 0:02:43.6]} 23... Ba7 {[%clk
0:02:12.6]} 24. Qh5 {[%clk 0:02:42.4]} 24... Nf8 {[%clk 0:02:05.4]} 25. Ng3
{[%clk 0:02:37]} 25... Qe6 {[%clk 0:02:03.6]} 26. Rcd1 {[%clk 0:02:36.6]} 26...
Qf7 {[%clk 0:01:58.7]} 27. Qf3 {[%clk 0:02:35.2]} 27... Ne6 {[%clk 0:01:51.3]}
28. Nf5 {[%clk 0:02:33.7]} 28... Kh8 {[%clk 0:01:44.1]} 29. Qg4 {[%clk
0:02:24.6]} 29... Red8 {[%clk 0:01:36.3]} 30. Qxb4 {[%clk 0:02:24.4]} 30... Qd7
{[%clk 0:01:20.7]} 31. Ne7 {[%clk 0:02:13.1]} 31... Re8 {[%clk 0:01:08.6]} 32.
Qh4 {[%clk 0:02:11.2]} 32... Nf8 {[%clk 0:01:02.8]} 33. R5d2 {[%clk 0:02:05.1]}
33... Qe6 {[%clk 0:00:53.1]} 34. a4 {[%clk 0:01:59.8]} 34... g6 {[%clk
0:00:45.1]} 35. Qh6 {[%clk 0:01:59.5]} 35... Qf7 {[%clk 0:00:43.2]} 36. a5
{[%clk 0:01:59.7]} 36... Qg7 {[%clk 0:00:43.4]} 37. Qh4 {[%clk 0:02:00.3]} 37...
Ne6 {[%clk 0:00:41.3]} 38. Qc4 {[%clk 0:02:01.2]} 38... Qf7 {[%clk 0:00:38.8]}
39. Bh6 {[%clk 0:02:01.8]} 39... Ng5 {[%clk 0:00:35.1]} 40. Qb4 {[%clk
0:01:59.2]} 40... Ne6 {[%clk 0:00:32.5]} 41. Rd5 {[%clk 0:01:56.3]} 41... Nd4
{[%clk 0:00:31.2]} 42. R5xd4 {[%clk 0:01:53.7]} 42... exd4 {[%clk 0:00:31.9]}
43. Qxd4 {[%clk 0:01:55.6]} 43... Rxe7 {[%clk 0:00:30.7]} 44. dxe7 {[%clk
0:01:56.2]} 44... Qxe7 {[%clk 0:00:32.1]} 45. Bf4 {[%clk 0:01:45.6]} 45... Bxc5
{[%clk 0:00:30.9]} 46. Qc4 {[%clk 0:01:46.5]} 46... Re8 {[%clk 0:00:31.5]} 47.
Bg3 {[%clk 0:01:45.4]} 47... Ba7 {[%clk 0:00:29.2]} 48. Qc3 {[%clk 0:01:43.5]}
48... Kg7 {[%clk 0:00:29.3]} 49. Qb3 {[%clk 0:01:41.3]} 49... Bb8 {[%clk
0:00:27.2]} 50. Bxb8 {[%clk 0:01:37.3]} 50... Rxb8 {[%clk 0:00:28.2]} 51. Rc1
{[%clk 0:01:38.9]} 51... Rd8 {[%clk 0:00:25.3]} 52. Qb6 {[%clk 0:01:39]} 52...
Rd7 {[%clk 0:00:25.6]} 53. g3 {[%clk 0:01:40.2]} 53... Kf7 {[%clk 0:00:24.9]}
54. h4 {[%clk 0:01:41.4]} 54... h5 {[%clk 0:00:24]} 55. Rc3 {[%clk 0:01:38.7]}
55... Qe1+ {[%clk 0:00:23.1]} 56. Kg2 {[%clk 0:01:39.6]} 56... Qxc3 {[%clk
0:00:24]} 57. Qb1 {[%clk 0:01:40.1]} 57... Qc6+ {[%clk 0:00:24.7]} 58. Kh2
{[%clk 0:01:35.8]} 58... Rd2 {[%clk 0:00:25]} 59. Qa2+ {[%clk 0:01:22]} 59...
Rxa2 {[%clk 0:00:24.1]} 0-1